lending/lending_fUSD_20250218
["ID","MTS","AMOUNT","RATE_DAILY","PERIOD"]
[353496965,1739885195846,-500.0,0.00014497,2]
[353496966,1739885195868,-500.0,0.00014497,2]
[353496967,1739885195891,-500.0,0.00014497,2]
[353496968,1739885195916,-500.0,0.00014497,2]
[353496969,1739885195938,-500.0,0.00014497,2]
[353496970,1739885195961,-500.0,0.00014497,2]
[353496971,1739885195984,-500.0,0.00014497,2]
[353496972,1739885196006,-500.0,0.00014497,2]
[353496973,1739885196027,-500.0,0.00014497,2]
[353496974,1739885196050,-500.0,0.00014497,2]
[353496975,1739885196071,-500.0,0.00014497,2]
[353496976,1739885196092,-500.0,0.00014497,2]
[353496977,1739885196114,-155.04154,0.00014497,2]
[353496978,1739885196135,-500.0,0.00014498,2]
[353496979,1739885196157,-616.81133468,0.00014498,2]
[353496980,1739885196178,-500.0,0.00014498,2]
[353496981,1739885196199,-500.0,0.00014498,2]
[353496982,1739885196223,-504.26,0.00014498,2]
[353496983,1739885196244,-500.0,0.00014498,2]
[353496984,1739885196265,-236.82067821,0.00014498,2]
[353496985,1739885196286,-500.0,0.00014498,2]
[353496986,1739885196306,-500.0,0.00014498,2]
[353496987,1739885196327,-501.02382251,0.00014498,2]
[353496988,1739885196348,-214.53,0.00014498,2]
[353496989,1739885196369,-500.0,0.00014498,2]
[353496990,1739885196391,-500.0,0.00014498,2]
[353496991,1739885196413,-775.454753,0.00014498,2]
[353496992,1739885196439,-500.0,0.00014498,2]
[353496993,1739885196461,-500.0,0.00014498,2]
[353496994,1739885196483,-500.0,0.00014498,2]
[353496995,1739885196505,-500.0,0.00014498,2]
[353496996,1739885196528,-500.0,0.00014498,2]
[353496997,1739885196549,-500.0,0.00014498,2]
[353496998,1739885196571,-500.0,0.00014499,2]
[353496999,1739885196594,-500.0,0.00014499,2]
[353497000,1739885196616,-516.0241057,0.00014499,2]
[353497001,1739885196639,-500.0,0.00014499,2]
[353497002,1739885196662,-500.0,0.00014499,2]
[353497003,1739885196685,-500.0,0.00014499,2]
[353497004,1739885196708,-500.0,0.00014499,2]
[353497005,1739885196730,-500.0,0.00014499,2]
[353497006,1739885196751,-500.0,0.00014499,2]
[353497007,1739885196773,-500.0,0.00014499,2]
[353497008,1739885196794,-500.0,0.00014499,2]
[353497009,1739885196819,-500.0,0.00014499,2]
[353497010,1739885196840,-500.0,0.00014499,2]
[353497011,1739885196861,-2003.0,0.00014499,3]
[353497012,1739885196882,-908.89,0.00014499,2]
[353497013,1739885196906,-500.0,0.00014499,2]
[353497014,1739885196929,-500.0,0.00014499,2]
[353497015,1739885196950,-500.0,0.00014499,2]
[353497016,1739885196972,-500.0,0.00014499,2]
[353497017,1739885196994,-500.0,0.00014499,2]
[353497018,1739885197015,-500.0,0.00014499,2]
[353497019,1739885197036,-500.0,0.00014499,2]
[353497020,1739885197057,-500.0,0.00014499,2]
[353497021,1739885197078,-500.0,0.00014499,2]
[353497022,1739885197100,-500.0,0.00014499,2]
[353497023,1739885197121,-500.0,0.00014499,2]
[353497024,1739885197142,-500.0,0.00014499,2]
[353497025,1739885197163,-516.01,0.00014499,2]
[353497026,1739885197185,-485.15,0.00014499,2]
[353497027,1739885197206,-529.92,0.00014499,2]
[353497028,1739885197231,-500.0,0.00014499,2]
[353497029,1739885197252,-500.0,0.00014499,2]
[353497030,1739885197275,-504.66,0.00014499,2]
[353497031,1739885197296,-500.0,0.00014499,2]
[353497032,1739885197318,-500.0,0.00014499,2]
[353497033,1739885197339,-500.0,0.00014499,2]
[353497034,1739885197360,-546.8,0.00014499,2]
[353497035,1739885197381,-439.92568145,0.00014499,2]
[353497036,1739885197404,-1015909.78562797,0.000145,5]
[353497038,1739885230534,152.71,0.000149,31]
[353497039,1739885230593,152.71,0.000149,31]
[353497040,1739885230655,152.71,0.000149,31]
[353497041,1739885230717,152.71,0.000149,31]
[353497042,1739885230778,152.71,0.000149,31]
[353497043,1739885230848,152.71,0.000149,31]
[353497044,1739885230905,152.71,0.000149,31]
[353497045,1739885230961,152.71,0.000149,31]
[353497046,1739885231015,152.71,0.000149,31]
[353497047,1739885231084,152.71,0.000149,31]
[353497048,1739885231138,152.71,0.000149,31]
[353497049,1739885231211,152.71,0.000149,31]
[353497050,1739885231434,152.71,0.000149,31]
[353497051,1739885231471,152.71,0.000149,31]
[353497075,1739885432137,-150.0,9.999e-05,2]
[353497076,1739885432147,-200.0,0.0001,2]
[353497077,1739885432157,-509.76486774,0.0001,2]
[353497078,1739885432167,-406185.87591689,0.0001,2]
[353497079,1739885432176,-5521.0,0.000105,3]
[353497080,1739885432186,-5552.0,0.000109,5]
[353497081,1739885432195,-167.92376665,0.000109,2]
[353497082,1739885432204,-200.0,0.00010999,2]
[353497083,1739885432214,-378.81,0.0001165,2]
[353497084,1739885432223,-179.4,0.00013288,2]
[353497085,1739885432233,-179.4,0.00013321,2]
[353497086,1739885432242,-179.4,0.00013354,2]
[353497087,1739885432251,-2176.38536838,0.000136,2]
[353497088,1739885432261,-501.9,0.00013698,2]
[353497089,1739885432270,-477.2,0.00013698,2]
[353497090,1739885432282,-571.78,0.00013698,2]
[353497091,1739885432291,-273.35,0.00013698,2]
[353497092,1739885432300,-525.81,0.00013698,2]
[353497093,1739885432309,-409.38,0.00013698,2]
[353497094,1739885432319,-611.81,0.00013698,2]
[353497095,1739885432329,-183.66,0.00013698,2]
[353497096,1739885432338,-558.99,0.00013698,2]
[353497097,1739885432347,-500.0,0.00013698,2]
[353497098,1739885432358,-265.72,0.00013698,2]
[353497099,1739885432367,-500.0,0.00013698,2]
[353497100,1739885432379,-647.22352757,0.00013698,2]
[353497101,1739885432388,-500.0,0.00013698,2]
[353497102,1739885432398,-500.0,0.00013698,2]
[353497103,1739885432408,-200.0,0.000137,5]
[353497104,1739885432417,-500.0,0.0001378,2]
[353497105,1739885432426,-500.0,0.0001378,2]
[353497106,1739885432435,-331.62322648,0.0001378,2]
[353497107,1739885432444,-500.0,0.0001378,2]
[353497108,1739885432454,-500.0,0.000138,5]
[353497109,1739885432463,-500.0,0.00013863,2]
[353497110,1739885432472,-476.32662759,0.00013863,2]
[353497111,1739885432481,-500.0,0.00013863,2]
[353497112,1739885432490,-700.0,0.000139,5]
[353497113,1739885432499,-164.17,0.000139,2]
[353497114,1739885432508,-378.81,0.00013914,2]
[353497115,1739885432518,-500.0,0.00013945,2]
[353497116,1739885432527,-500.0,0.00013945,2]
[353497117,1739885432536,-500.0,0.00014027,2]
[353497118,1739885432545,-500.0,0.00014027,2]
[353497119,1739885432555,-500.0,0.00014109,2]
[353497120,1739885432564,-500.0,0.00014109,2]
[353497121,1739885432574,-435.28853453,0.00014191,2]
[353497122,1739885432583,-500.0,0.00014191,2]
[353497123,1739885432592,-500.0,0.00014273,2]
[353497124,1739885432602,-1000.0,0.000143,2]
[353497125,1739885432612,-500.0,0.00014356,2]
[353497126,1739885432622,-55555.0,0.000144,2]
[353497128,1739885432631,-284.9446631,0.00014438,2]
[353497131,1739885432641,-151.0,0.0001448,2]
[353497132,1739885432651,-1271.0,0.0001448,2]
[353497133,1739885432660,-360.15,0.00014497,2]
[353497134,1739885432670,-500.0,0.00014497,2]
[353497135,1739885432679,-500.0,0.00014498,2]
[353497137,1739885432688,-500.0,0.00014499,2]
[353497139,1739885432697,-500.0,0.00014499,2]
[353497141,1739885432707,-500.0,0.00014499,2]
[353497143,1739885432715,-500.0,0.00014499,2]
[353497144,1739885432724,-500.0,0.00014499,2]
[353497147,1739885432734,-500.0,0.00014499,2]
[353497149,1739885432743,-500.0,0.00014499,2]
[353497150,1739885432752,-550.36,0.00014499,2]
[353497153,1739885432761,-505.65067466,0.00014499,2]
[353497154,1739885432770,-409.9855695,0.00014499,2]
[353497156,1739885432780,-338688.37947254,0.000145,5]
[353497159,1739885432792,-1641849.17928,0.000145,5]
[353497161,1739885432803,-251667.62927367,0.000145,5]
[353497163,1739885432812,-200.0,0.000145,2]
[353497164,1739885432821,-236.98465591,0.000145,2]
[353497165,1739885432830,-6168.72756186,0.00014507,2]
[353497166,1739885432839,-229.32161768,0.00014555,2]
[353497167,1739885432847,-409.13188215,0.00014574,2]
[353497168,1739885432856,-500.0,0.0001458,2]
[353497169,1739885432865,-274.17,0.0001458,2]
[353497170,1739885432875,-500.0,0.0001458,2]
[353497171,1739885432884,-908.89,0.00014581,2]
[353497172,1739885432893,-500.0,0.00014581,2]
[353497173,1739885432902,-500.0,0.00014581,2]
[353497174,1739885432912,-500.0,0.00014581,2]
[353497176,1739885432922,-1708.0,0.00014584,2]
[353497178,1739885432931,-1044.67364111,0.00014602,2]
[353497180,1739885432940,-500.0,0.00014636,2]
[353497182,1739885432949,-200.0,0.00014645,2]
[353497184,1739885432959,-500.0,0.00014662,2]
[353497186,1739885432968,-500.0,0.00014662,2]
[353497188,1739885432977,-908.89,0.00014664,2]
[353497190,1739885432987,-299.73753121,0.00014664,2]
[353497192,1739885432999,-197.51,0.00014664,2]
[353497194,1739885433009,-500.0,0.00014664,2]
[353497196,1739885433020,-1000.0,0.000147,5]
[353497198,1739885433032,-1708.0,0.00014733,2]
[353497200,1739885433044,-263.11,0.00014744,2]
[353497203,1739885433054,-183.23,0.00014744,2]
[353497205,1739885433065,-908.89,0.00014746,2]
[353497207,1739885433076,-500.0,0.00014746,2]
[353497209,1739885433087,-500.0,0.00014773,2]
[353497211,1739885433097,-150.0,0.0001478,2]
[353497213,1739885433107,-200.0,0.00014791,2]
[353497215,1739885433117,-418239.130277,0.000148,3]
[353497217,1739885433129,-1300.0,0.000148,5]
[353497219,1739885433139,-908.89,0.00014828,2]
[353497222,1739885433150,-500.0,0.00014828,2]
[353497224,1739885433160,-500.30466881,0.00014873,2]
[353497226,1739885433173,-500.13845198,0.00014873,2]
[353497228,1739885433183,-161.59300889,0.00014873,2]
[353497229,1739885433194,-207.30870199,0.00014873,2]
[353497230,1739885433204,-500.13239149,0.00014873,2]
[353497231,1739885433215,-1708.0,0.00014882,2]
[353497232,1739885433226,-646.96698291,0.00014882,2]
[353497233,1739885433237,-1950.4665984,0.00014892,2]
[353497234,1739885433247,-199.24,0.00014892,2]
[353497235,1739885433258,-161.0,0.000149,3]
[353497236,1739885433269,-200.0,0.000149,5]
[353497237,1739885433285,-319469.93275494,0.000149,3]
[353497238,1739885433338,-546.3,0.00014499,2]
[353497239,1739885433349,-756.7,0.000149,3]
[353497240,1739885433362,-2113.28286315,0.000149,3]
[353497241,1739885433375,-2614.6413451,0.000149,3]
[353497242,1739885433387,-10107.22964,0.000149,3]
[353497243,1739885433399,-78156.54662881,0.000149,3]
[353497244,1739885433409,-908.89,0.0001491,2]
[353497245,1739885433419,-500.0,0.0001491,2]
[353497246,1739885433430,-460.58097492,0.0001491,2]
[353497247,1739885433441,-1000.0,0.00014924,2]
[353497248,1739885433451,-5107.53726797,0.00014928,2]
[353497249,1739885433461,-200.0,0.00014939,2]
[353497250,1739885433472,-500.50314236,0.00014973,2]
[353497251,1739885433482,-501.70025976,0.00014973,2]
[353497252,1739885433492,-380.24,0.00014986,2]
[353497253,1739885433503,-4523.55320946,0.00014989,2]
[353497254,1739885433514,-496948.7386568,0.0001499,3]
[353497255,1739885433527,-774.34181465,0.0001499,3]
[353497256,1739885433540,-35740.81905366,0.0001499,3]
[353497261,1739885438106,-521.56,0.00013206,2]
[353497262,1739885438116,-11.94,0.0001448,2]
[353497263,1739885438168,-2012.06,0.0001448,2]
[353497264,1739885438179,-4841.01281286,0.0001499,3]
[353497265,1739885438228,-600.61214277,0.0001499,3]
[353497453,1739885440205,-298873.07570757,0.0001499,3]
[353497454,1739885440218,-9654.645,0.0001499,3]
[353497455,1739885441824,-405.31110645,0.0001499,3]
[353497456,1739885441837,-3881.79780114,0.0001499,3]
[353497457,1739885441849,-1336.78335151,0.0001499,3]
[353497458,1739885441866,-302.2027,0.0001499,3]
[353497459,1739885441879,-2019.07561438,0.0001499,3]
[353497488,1739885443153,-1167188.46558255,0.0001499,3]
[353497489,1739885443211,-6624.26562597,0.0001499,3]
[353497490,1739885443272,-863149.70962446,0.0001499,3]
[353497491,1739885443331,-2699.828592,0.0001499,3]
[353497492,1739885443342,-1153.7137961,0.0001499,3]
[353497493,1739885443354,-1668.02297108,0.0001499,3]
[353497494,1739885443367,-993.12736041,0.0001499,3]
[353497495,1739885443380,-14285.92213661,0.0001499,3]
[353497496,1739885443391,-162975.42311221,0.0001499,3]
[353497497,1739885443401,-908.89,0.00014992,2]
[353497498,1739885443410,-1708.0,0.00015031,2]
[353497499,1739885443420,-500.0,0.00015047,2]
[353497500,1739885443430,-1425.39,0.00015068,2]
[353497501,1739885443439,-300.0,0.00015068,2]
[353497502,1739885443448,-908.89,0.00015075,2]
[353497503,1739885443459,-200.0,0.00015089,2]
[353497504,1739885443469,-150.0,0.00015141,2]
[353497505,1739885443479,-908.89,0.00015157,2]
[353497506,1739885443489,-1708.0,0.0001518,2]
[353497507,1739885443499,-500.0,0.00015184,2]
[353497508,1739885443507,-908.89,0.00015239,2]
[353497509,1739885443517,-900.0,0.00015241,2]
[353497510,1739885443527,-800.0,0.00015241,2]
[353497511,1739885443536,-500.0,0.00015241,2]
[353497512,1739885443546,-908.89,0.00015321,2]
[353497513,1739885443555,-500.0,0.00015321,2]
[353497514,1739885443565,-1708.0,0.00015328,2]
[353497515,1739885443574,-908.89,0.00015403,2]
[353497516,1739885443584,-500.0,0.00015458,2]
[353497517,1739885443594,-908.89,0.00015486,2]
[353497518,1739885443604,-150.0,0.00015501,2]
[353497519,1739885443613,-393.27,0.00015516,2]
[353497520,1739885443623,-3810.16193,0.0001553,2]
[353497521,1739885443634,-908.89,0.00015568,2]
[353497522,1739885443644,-500.0,0.00015595,2]
[353497523,1739885443654,-908.89,0.0001565,2]
[353497524,1739885443663,-908.89,0.00015732,2]
[353497525,1739885443673,-500.0,0.00015732,2]
[353497526,1739885443683,-908.89,0.00015814,2]
[353497527,1739885443692,-150.0,0.00015862,2]
[353497528,1739885443702,-500.0,0.00015869,2]
[353497529,1739885443712,-908.89,0.00015896,2]
[353497530,1739885443722,-161.0,0.00015914,3]
[353497531,1739885443732,-908.89,0.00015979,2]
[353497532,1739885443742,-700.0,0.00016,2]
[353497533,1739885443752,-500.0,0.00016006,2]
[353497534,1739885443762,-908.89,0.00016061,2]
[353497535,1739885443771,-9999.99,0.00016116,2]
[353497536,1739885443781,-150.99,0.00016116,2]
[353497537,1739885443790,-299.99,0.00016116,4]
[353497538,1739885443800,-267.2,0.00016116,2]
[353497539,1739885443809,-6341.76,0.00016116,2]
[353497540,1739885443818,-757.18,0.00016116,2]
[353497541,1739885443827,-908.89,0.00016143,2]
[353497542,1739885443837,-500.0,0.00016143,2]
[353497543,1739885443846,-378.81,0.00016178,2]
[353497544,1739885443856,-150.0,0.00016222,2]
[353497545,1739885443866,-908.89,0.00016225,2]
[353497546,1739885443875,-500.0,0.0001628,2]
[353497547,1739885443885,-908.89,0.00016307,2]
[353497548,1739885443895,-908.96411256,0.0001639,2]
[353497549,1739885443904,-500.0,0.00016417,2]
[353497550,1739885443914,-300.0,0.00016438,2]
[353497551,1739885443923,-1595.351,0.00016534,2]
[353497552,1739885443932,-185.0124046,0.00016534,2]
[353497553,1739885443942,-199.24,0.00016547,2]
[353497554,1739885443951,-500.0,0.00016554,2]
[353497555,1739885443960,-1000.0,0.00016582,2]
[353497556,1739885443970,-150.0,0.00016583,2]
[353497557,1739885443979,-900.0,0.00016611,2]
[353497558,1739885443989,-800.0,0.00016611,2]
[353497559,1739885443998,-380.24,0.00016651,2]
[353497560,1739885444007,-673.9,0.00016658,30]
[353497562,1739885444016,-500.0,0.00016691,2]
[353497564,1739885444026,-176.46,0.00016712,2]
[353497565,1739885444035,-3810.16193,0.0001678,2]
[353497566,1739885444044,-8595.0,0.000168,2]
[353497567,1739885444053,-500.0,0.00016828,2]
[353497568,1739885444062,-161.0,0.00016929,3]
[353497570,1739885444072,-150.0,0.00016943,2]
[353497572,1739885444081,-500.0,0.00016965,2]
[353497574,1739885444090,-521.53233175,0.00017033,2]
[353497576,1739885444099,-302.3128127,0.00017033,2]
[353497578,1739885444108,-632.51,0.00017102,2]
[353497580,1739885444118,-500.0,0.0001725,2]
[353497582,1739885444127,-1425.39,0.0001726,4]
[353497583,1739885444137,-150.0,0.00017304,2]
[353497586,1739885444146,-218.078,0.0001748,2]
[353497587,1739885444155,-2754.281,0.0001748,2]
[353497589,1739885444164,-1258.001,0.0001748,2]
[353497591,1739885444173,-1950.4665984,0.00017481,2]
[353497593,1739885444182,-150.0,0.00017664,2]
[353497595,1739885444191,-900.0,0.00017707,2]
[353497596,1739885444201,-800.0,0.00017707,2]
[353497597,1739885444210,-739.45720351,0.00017798,2]
[353497598,1739885444219,-600.0,0.00017808,2]
[353497599,1739885444228,-161.0,0.00017943,3]
[353497600,1739885444238,-500.0,0.00017981,2]
[353497601,1739885444247,-150.0,0.00018025,2]
[353497602,1739885444257,-3810.16194,0.0001803,2]
[353497603,1739885444266,-200.0,0.00018082,2]
[353497604,1739885444277,-208.0,0.000181,2]
[353497605,1739885444291,-1227.0,0.00018178,2]
[353497606,1739885444301,-199.24,0.00018202,2]
[353497607,1739885444311,-1000.0,0.0001824,2]
[353497608,1739885444320,-380.24,0.00018316,2]
[353497609,1739885444330,-150.0,0.00018385,2]
[353497610,1739885444339,-378.81,0.00018442,2]
[353497611,1739885444349,-208.0,0.0001852,2]
[353497612,1739885444360,-200.0,0.0001852,2]
[353497613,1739885444370,-154.58,0.000186,2]
[353497614,1739885444379,-154.58,0.000186,2]
[353497615,1739885444388,-150.0,0.00018746,2]
[353497616,1739885444399,-500.0,0.00018798,2]
[353497617,1739885444408,-900.0,0.00018803,2]
[353497618,1739885444418,-800.0,0.00018803,2]
[353497619,1739885444429,-500.0,0.00018898,2]
[353497620,1739885444438,-150.0,0.00018924,2]
[353497621,1739885444449,-200.0,0.0001893,2]
[353497622,1739885444459,-208.0,0.0001893,2]
[353497623,1739885444469,-200.0,0.0001893,2]
[353497624,1739885444478,-161.0,0.00018957,3]
[353497625,1739885444487,-500.0,0.00018998,2]
[353497626,1739885444497,-1000.0,0.00019,2]
[353497627,1739885444506,-150.0,0.00019086,2]
[353497628,1739885444515,-500.0,0.00019098,2]
[353497629,1739885444525,-150.0,0.00019101,2]
[353497630,1739885444534,-150.0,0.00019106,2]
[353497631,1739885444543,-150.0,0.00019119,2]
[353497632,1739885444553,-150.0,0.0001916,2]
[353497633,1739885444562,-4089.03361607,0.00019169,2]
[353497634,1739885444572,-150.0,0.00019179,2]
[353497635,1739885444581,-500.0,0.00019198,2]
[353497636,1739885444591,-200.0,0.000192,2]
[353497637,1739885444600,-150.0,0.00019216,2]
[353497638,1739885444609,-150.0,0.00019237,2]
[353497639,1739885444620,-673.9,0.00019242,30]
[353497640,1739885444629,-3810.16193,0.0001928,2]
[353497641,1739885444639,-500.0,0.00019298,2]
[353497642,1739885444649,-1000.0,0.000193,2]
[353497643,1739885444658,-150.0,0.00019305,2]
[353497644,1739885444667,-384.46,0.00019325,2]
[353497645,1739885444676,-150.0,0.00019331,2]
[353497646,1739885444685,-200.0,0.0001935,2]
[353497647,1739885444695,-208.0,0.0001935,2]
[353497648,1739885444704,-200.0,0.0001935,2]
[353497649,1739885444714,-150.0,0.00019363,2]
[353497650,1739885444724,-150.0,0.00019364,2]
[353497651,1739885444733,-150.0,0.00019366,2]
[353497652,1739885444743,-150.0,0.00019368,2]
[353497653,1739885444752,-1000.0,0.00019388,2]
[353497654,1739885444761,-500.0,0.00019398,2]
[353497655,1739885444771,-775.89,0.00019399,2]
[353497656,1739885444781,-880.0,0.00019399,2]
[353497657,1739885444791,-775.89,0.00019399,2]
[353497658,1739885444801,-775.89,0.00019399,2]
[353497659,1739885444810,-775.89,0.00019399,2]
[353497660,1739885444820,-150.0,0.00019419,2]
[353497661,1739885444830,-1000.0,0.00019428,2]
[353497662,1739885444839,-150.0,0.00019428,2]
[353497663,1739885444849,-150.0,0.00019438,2]
[353497664,1739885444858,-150.0,0.00019444,2]
[353497665,1739885444869,-1425.39,0.00019452,6]
[353497666,1739885444879,-150.0,0.00019467,2]
[353497667,1739885444889,-150.0,0.00019467,2]
[353497668,1739885444899,-150.0,0.00019469,2]
[353497669,1739885444909,-150.0,0.00019498,2]
[353497670,1739885444919,-500.0,0.00019498,2]
[353497671,1739885444929,-200.0,0.000195,7]
[353497672,1739885444939,-150.0,0.00019523,2]
[353497673,1739885444948,-1000.0,0.00019548,2]
[353497674,1739885444959,-150.0,0.00019576,2]
[353497675,1739885444969,-1000.0,0.00019596,2]
[353497676,1739885444978,-500.0,0.00019598,2]
[353497677,1739885444988,-152.71,0.000196,31]
[353497678,1739885444997,-152.71,0.000196,31]
[353497679,1739885445006,-152.71,0.000196,31]
[353497680,1739885445016,-152.71,0.000196,31]
[353497681,1739885445026,-152.71,0.000196,31]
[353497682,1739885445035,-152.71,0.000196,31]
[353497683,1739885445044,-152.71,0.000196,31]
[353497684,1739885445053,-152.71,0.000196,31]
[353497685,1739885445063,-152.71,0.000196,31]
[353497686,1739885445072,-152.71,0.000196,31]
[353497687,1739885445082,-152.71,0.000196,31]
[353497688,1739885445091,-152.71,0.000196,31]
[353497689,1739885445101,-152.71,0.000196,31]
[353497690,1739885445110,-152.71,0.000196,31]
[353497691,1739885445119,-152.71,0.000196,31]
[353497692,1739885445129,-152.71,0.000196,31]
[353497693,1739885445139,-152.71,0.000196,31]
[353497694,1739885445149,-152.71,0.000196,31]
[353497695,1739885445158,-152.71,0.000196,31]
[353497696,1739885445167,-152.71,0.000196,31]
[353497697,1739885445177,-200.0,0.000196,7]
[353497698,1739885445186,-492.52,0.000196,7]
[353497699,1739885445195,-150.0,0.00019667,2]
[353497700,1739885445204,-150.0,0.00019688,2]
[353497701,1739885445214,-646.49,0.00019698,2]
[353497702,1739885445223,-200.0,0.000197,7]
[353497703,1739885445231,-151.16145115,0.00019754,2]
[353497704,1739885445241,-200.0,0.0001976,2]
[353497705,1739885445250,-208.0,0.0001976,2]
[353497706,1739885445259,-200.0,0.0001976,2]
[353497707,1739885445268,-150.0,0.00019765,2]
[353497708,1739885445279,-150.0,0.00019766,2]
[353497709,1739885445291,-150.0,0.00019779,2]
[353497710,1739885445300,-150.0,0.00019795,2]
[353497711,1739885445309,-766.0,0.000198,7]
[353497712,1739885445319,-300.0,0.00019807,2]
[353497713,1739885445328,-300.0,0.00019807,2]
[353497714,1739885445337,-150.0,0.00019812,2]
[353497715,1739885445346,-150.0,0.00019819,2]
[353497716,1739885445356,-150.0,0.00019827,2]
[353497717,1739885445367,-205.0,0.0001985,2]
[353497718,1739885445376,-199.24,0.00019857,2]
[353497719,1739885445386,-150.0,0.00019862,2]
[353497720,1739885445395,-150.0,0.00019887,2]
[353497721,1739885445404,-1000.0,0.00019899,2]
[353497722,1739885445413,-900.0,0.00019899,2]
[353497723,1739885445422,-800.0,0.00019899,2]
[353497724,1739885445432,-150.0,0.00019912,2]
[353497725,1739885445441,-1000.0,0.00019927,2]
[353497726,1739885445450,-150.0,0.00019935,2]
[353497727,1739885445459,-150.0,0.00019937,2]
[353497728,1739885445469,-623.34128041,0.0001995,30]
[353497729,1739885445479,-161.0,0.00019971,3]
[353497730,1739885445488,-150.0,0.00019978,2]
[353497731,1739885445496,-380.24,0.00019981,2]
[353497732,1739885445506,-89794.43944009,0.0002,3]
[353497734,1739885445976,-500.0,0.00014499,2]
[353497735,1739885445986,-509.354342,0.000179,2]
[353497736,1739885445995,-500.0,0.000189,2]
[353497737,1739885446005,-500.0,0.000199,2]
[353497738,1739885446014,-4853.19006908,0.0002,3]
[353497739,1739885446023,-3634.91558892,0.0002,5]
[353497740,1739885446035,-373.41614097,0.0002,5]
[353497741,1739885446097,-1491.66827111,0.0002,5]
[353497742,1739885446107,-2110.0,0.0002,2]
[353497743,1739885446116,-9999.99,0.0002,2]
[353497744,1739885446126,-12500.0,0.0002,2]
[353497745,1739885446135,-10000.0,0.0002,7]
[353497746,1739885446144,-8075.19,0.0002,2]
[353497747,1739885446154,-12499.99,0.0002,2]
[353497748,1739885446163,-10000.0,0.0002,2]
[353497749,1739885446172,-12499.99,0.0002,2]
[353497750,1739885446182,-888.0,0.0002,2]
[353497751,1739885446191,-888.0,0.0002,2]
[353497752,1739885446200,-888.0,0.0002,2]
[353497753,1739885446209,-888.0,0.0002,2]
[353497754,1739885446218,-888.0,0.0002,2]
[353497755,1739885446228,-888.0,0.0002,2]
[353497756,1739885446237,-888.0,0.0002,2]
[353497757,1739885446246,-888.0,0.0002,2]
[353497758,1739885446255,-888.0,0.0002,2]
[353497759,1739885446265,-888.0,0.0002,2]
[353497760,1739885446275,-888.0,0.0002,2]
[353497761,1739885446288,-232.0,0.0002,2]
[353497762,1739885446297,-159.0,0.0002,2]
[353497763,1739885446307,-10000.0,0.0002,2]
[353497764,1739885446316,-150.0,0.0002,5]
[353497765,1739885446325,-150.0,0.0002,5]
[353497766,1739885446335,-150.0,0.00020002,2]
[353497767,1739885446344,-150.0,0.00020005,4]
[353497768,1739885446353,-450.0,0.00020005,4]